bitfinex/quotes_ETHUSD_20251226
["timestamp","ask_amount","ask_price","bid_price","bid_amount"]
[1766711560192,9.5979,2910.3,2909.6,8.594]
[1766711560380,9.5979,2910.3,2909.7,0.0343678]
[1766711560707,9.5979,2910.5,2909.7,1.20653762]
[1766711560869,9.5979,2910.5,2909.5,12.03100844]
[1766711561578,9.5979,2910.5,2909.5,12.03300844]
[1766711561981,0.001,2910.0,2909.5,12.03300844]
[1766711562572,0.001,2910.0,2909.6,8.594]
[1766711562984,8.6959,2910.4,2909.7,8.6283678]
[1766711563195,8.6959,2910.4,2909.7,8.594]
[1766711563503,8.6959,2910.4,2909.8,8.62836662]
[1766711563682,8.6959,2910.4,2909.8,12.03064756]
[1766711563878,8.6959,2910.4,2909.8,8.594]
[1766711565403,8.6959,2910.4,2909.5,0.002]
[1766711565578,9.65569,2910.4,2909.5,9.2029]
[1766711566120,9.65569,2910.4,2909.5,12.63991596]
[1766711566795,9.65569,2910.4,2909.6,9.2009]
[1766711567285,8.6959,2910.4,2909.6,9.2009]
[1766711567904,8.6959,2910.4,2909.7,9.2009]
[1766711568308,8.6969,2910.4,2909.7,9.2009]
[1766711569815,8.6969,2910.4,2909.8,9.2009]
[1766711569978,8.6969,2910.4,2909.8,13.32280349]
[1766711570315,8.6969,2910.4,2909.9,9.2009]
[1766711570316,0.001,2910.4,2909.9,9.2009]
[1766711572605,8.9782,2910.4,2909.7,8.8391]
[1766711573194,8.9772,2910.2,2909.5,0.002]
[1766711574000,8.9772,2910.2,2909.5,3.4389574]
[1766711574217,8.9772,2910.2,2909.5,12.2780574]
[1766711574927,8.9772,2910.2,2909.9,0.002]
[1766711575609,8.9772,2910.2,2909.5,8.8411]
[1766711575810,9.87502,2910.2,2909.5,8.8411]
[1766711576015,8.9772,2910.2,2909.5,8.8411]
[1766711578032,8.9772,2910.2,2909.5,12.2781141]
[1766711580629,8.9772,2910.2,2909.6,8.8391]
[1766711581317,8.9772,2910.2,2909.6,12.27596281]
[1766711581519,8.9772,2910.2,2909.6,8.8391]
[1766711582240,8.9772,2910.2,2909.5,12.27805286]
[1766711584941,8.9772,2910.2,2909.5,8.8411]
[1766711584942,9.87502,2910.2,2909.5,8.8411]
[1766711585433,9.87502,2910.2,2909.5,0.002]
[1766711588234,0.902,2910.1,2909.5,0.002]
[1766711588417,8.9772,2910.0,2909.5,0.002]
[1766711589836,8.9772,2909.8,2909.3,0.002]
[1766711590042,0.902,2910.1,2909.3,0.002]
[1766711590043,8.9772,2909.6,2909.3,0.002]
[1766711591738,1.31045325,2909.7,2909.3,0.002]
[1766711592114,9.8792,2910.2,2909.4,8.8391]
[1766711592316,9.8792,2910.2,2909.5,8.87347016]
[1766711592540,9.8792,2910.2,2909.5,8.8391]
[1766711593722,9.8792,2910.2,2909.6,0.03436898]
[1766711594734,9.8792,2910.2,2909.6,9.09646898]
[1766711594935,10.86722,2910.2,2909.6,9.0621]
[1766711598843,9.96522,2910.2,2909.5,0.002]
[1766711599141,10.86722,2910.2,2909.5,0.002]
[1766711599344,10.86722,2910.2,2909.3,0.002]
[1766711599345,8.8429,2909.9,2909.3,0.002]
[1766711599545,8.8429,2909.7,2909.3,0.002]
[1766711599941,8.8429,2909.7,2909.2,0.002]
[1766711601141,8.8429,2910.1,2909.2,9.0641]
[1766711601329,0.902,2909.7,2909.3,9.09647252]
[1766711601533,0.902,2909.7,2909.3,9.0621]
[1766711601928,8.8429,2909.9,2909.3,9.0621]
[1766711602134,10.62919,2909.8,2909.3,9.0621]
[1766711602330,0.98902,2910.2,2909.3,9.0621]
[1766711602531,0.001,2910.2,2909.4,9.0621]
[1766711602724,0.001,2910.2,2909.6,9.0621]
[1766711603754,0.001,2910.2,2909.6,12.49888843]
[1766711604255,0.001,2910.4,2909.7,0.0343678]
[1766711604440,1.03159961,2911.3,2910.0,9.0621]
[1766711604769,0.902,2911.1,2910.2,9.0621]
[1766711604969,0.902,2911.1,2910.5,9.0621]
[1766711605262,0.001,2911.2,2910.5,9.0621]
[1766711605475,0.903,2911.2,2910.5,9.0621]
[1766711605760,0.001,2911.2,2910.5,9.0621]
[1766711606461,0.903,2911.2,2910.7,9.0621]
[1766711606644,0.903,2911.2,2910.4,15.93400764]
[1766711606645,9.7459,2911.2,2910.4,15.93400764]
[1766711606841,9.7459,2911.2,2910.5,0.03435835]
[1766711607143,8.8439,2911.2,2910.6,9.09645717]
[1766711607331,8.8439,2911.2,2910.6,9.0621]
[1766711609064,8.8439,2911.2,2910.5,3.43579425]
[1766711609268,8.8439,2911.2,2910.4,12.49803525]
[1766711609468,8.8429,2911.0,2910.4,12.49803525]
[1766711610567,8.8429,2911.0,2910.4,3.43593525]
[1766711611367,8.8429,2911.0,2910.5,0.03435835]
[1766711611562,8.8429,2911.0,2910.4,9.09645953]
[1766711611785,0.001,2911.2,2910.4,9.0621]
[1766711612076,0.001,2911.2,2910.4,10.31191719]
[1766711612845,0.001,2911.2,2910.6,9.0621]
[1766711613061,0.001,2911.2,2910.7,9.09645599]
[1766711613285,0.001,2911.2,2910.7,12.49765346]
[1766711614287,0.001,2911.2,2910.8,9.0621]
[1766711614463,0.001,2911.4,2911.0,9.0621]
[1766711615771,0.001,2911.4,2911.0,12.49728502]
[1766711616271,0.001,2911.4,2911.0,9.0621]
[1766711617461,0.001,2911.4,2911.0,12.49733478]
[1766711618262,0.001,2911.4,2911.0,9.0621]
[1766711618964,0.001,2911.4,2910.9,3.43532366]
[1766711619683,0.001,2911.4,2910.9,3.46967729]
[1766711620990,0.001,2911.4,2910.9,12.53177729]
[1766711621190,0.001,2911.4,2910.9,12.49742366]
[1766711622985,0.001,2911.4,2911.0,0.03435245]
[1766711624011,0.001,2911.6,2911.0,8.98775245]
[1766711624182,8.9149,2912.0,2911.2,8.9534]
[1766711624388,9.6449,2912.0,2911.2,8.9534]
[1766711624608,8.7439,2912.0,2911.2,13.08073254]
[1766711624794,8.7439,2912.0,2911.3,9.3107753]
[1766711625312,6.29325752,2912.4,2911.3,9.3107753]
[1766711625313,8.9149,2912.3,2911.5,8.9534]
[1766711625521,8.9149,2912.3,2911.6,8.9534]
[1766711627315,8.9159,2912.4,2911.8,8.9534]
[1766711627510,8.9159,2912.4,2911.8,12.38764213]
[1766711628695,8.9159,2912.4,2911.8,8.9534]
[1766711629212,8.9159,2912.4,2911.7,3.43437448]
[1766711629405,8.9159,2912.4,2911.7,3.96149941]
[1766711630813,8.9159,2912.4,2911.7,12.91489941]
[1766711631118,8.9159,2912.4,2911.8,8.9534]
[1766711632421,8.9159,2912.4,2911.7,3.96149941]
[1766711632719,8.9159,2912.4,2911.7,9.48052493]
[1766711632885,8.9159,2912.4,2911.7,3.96153966]
[1766711633217,8.9159,2912.4,2911.7,12.91493966]
[1766711635115,8.9159,2912.4,2911.8,8.9534]
[1766711636123,8.9159,2912.4,2911.9,4.11999168]
[1766711636839,8.9159,2912.4,2911.9,16.50754149]
[1766711637536,8.9159,2912.4,2911.9,16.86491679]
[1766711638034,8.9159,2912.4,2911.9,13.43076698]
[1766711638230,8.9159,2912.4,2911.9,16.86492954]
[1766711638403,8.9159,2912.4,2911.9,16.86494979]
[1766711638804,8.9159,2912.4,2911.9,13.43076698]
[1766711639433,8.9159,2912.4,2911.9,13.07339168]
[1766711642845,8.9159,2912.4,2911.7,8.08149142]
[1766711643130,8.9159,2912.4,2911.7,4.11999168]
[1766711643309,8.9159,2912.4,2911.8,3.43429943]
[1766711646340,0.001,2912.4,2911.9,8.9534]
[1766711647102,8.9159,2912.4,2911.6,3.43450963]
[1766711647303,8.9149,2912.1,2911.2,3.43495276]
[1766711647522,8.9149,2911.9,2911.2,3.43495276]
[1766711647720,8.9149,2911.9,2911.1,3.43509799]
[1766711648124,8.9149,2911.9,2911.3,3.43488312]
[1766711648428,8.9149,2911.9,2911.2,3.43500961]
[1766711649711,9.89649,2911.9,2911.1,3.43507564]
[1766711649915,9.89649,2911.9,2911.1,12.38847564]
[1766711650418,9.89649,2911.9,2911.1,19.94359493]
[1766711650947,9.89649,2911.9,2911.2,8.9534]
[1766711651142,0.901,2912.0,2911.4,8.9534]
[1766711653446,9.8159,2912.0,2911.4,12.38816164]
[1766711654663,9.8159,2912.0,2911.4,8.9534]
[1766711655745,9.8159,2912.0,2911.4,0.002]
[1766711659349,9.8159,2912.0,2911.2,3.43500961]
[1766711659546,10.79749,2912.0,2911.0,8.2135]
[1766711659850,8.0739,2911.9,2911.1,3.43511228]
[1766711661847,8.0739,2911.3,2910.6,8.2115]
[1766711662141,8.0739,2911.3,2910.9,3.43529647]
[1766711662450,8.0739,2912.0,2911.0,7.55521715]
[1766711662652,8.0739,2912.0,2911.2,4.11999168]
[1766711662853,8.0739,2912.0,2911.0,10.99046277]
[1766711663042,8.0739,2912.0,2911.1,9.31054628]
[1766711663244,8.0739,2912.0,2911.3,8.2115]
[1766711663849,8.0739,2912.0,2911.4,8.2115]
[1766711664052,8.0739,2912.3,2911.5,8.2115]
[1766711664352,8.0739,2912.3,2911.5,8.71964621]
[1766711664555,8.0739,2912.3,2911.5,8.2115]
[1766711665134,8.0739,2912.3,2911.7,8.2115]
[1766711665823,8.0739,2912.3,2911.7,11.64589969]
[1766711667970,0.001,2912.4,2911.7,8.2115]
[1766711669350,0.001,2912.4,2911.9,8.2115]
[1766711670524,0.001,2912.4,2912.0,3.43406593]
[1766711671137,0.001,2912.4,2911.9,11.6456257]
[1766711673454,8.0749,2912.4,2911.9,11.6456257]
[1766711673754,8.0749,2912.4,2911.9,8.2115]
[1766711674054,8.0749,2912.4,2911.9,11.64567618]
[1766711674776,8.0749,2912.4,2911.6,4.11999168]
[1766711675072,0.001,2912.4,2911.7,8.2115]
[1766711677986,0.001,2912.4,2911.8,8.2115]
[1766711678852,8.0749,2912.4,2911.8,8.2115]
[1766711679985,4.12099168,2912.4,2911.6,0.002]
[1766711680310,8.0739,2912.1,2911.6,0.002]
[1766711680534,1.21938917,2912.1,2911.6,8.2135]
[1766711680819,8.0749,2912.4,2911.7,11.64585747]
[1766711681406,8.0749,2912.4,2911.7,8.2115]
[1766711681572,8.0749,2912.4,2911.6,0.002]
[1766711682920,8.0749,2912.4,2911.6,8.2135]
[1766711683215,8.0739,2912.2,2911.6,0.002]
[1766711684283,1.21958917,2912.3,2911.6,12.19109168]
[1766711684475,1.21958917,2912.3,2911.7,8.0691]
[1766711685795,1.21958917,2912.3,2911.7,11.5035001]
[1766711687331,7.7507,2912.3,2911.7,11.5035001]
[1766711690481,7.7507,2912.3,2911.7,8.0691]
[1766711692013,7.7507,2912.3,2911.7,11.50350044]
[1766711692215,7.7507,2912.3,2911.8,7.7773]
[1766711692593,7.57162667,2912.6,2912.1,7.7773]
[1766711692812,7.57162667,2912.6,2912.2,1.18972917]
[1766711692998,7.57162667,2912.6,2912.1,7.7773]
[1766711693814,0.001,2912.7,2912.1,7.7773]
[1766711694208,0.001,2912.7,2912.1,11.21119575]
[1766711694522,7.7517,2912.7,2912.1,11.21119575]
[1766711694689,0.001,2912.6,2912.1,11.21119575]
[1766711698402,7.5807,2912.7,2912.2,7.8116383]
[1766711698723,6.12125752,2913.1,2912.2,4.11995716]
[1766711698897,0.1775856,2913.2,2912.3,7.7773]
[1766711699098,0.001,2913.6,2912.5,7.7773]
[1766711699303,0.001,2913.6,2912.7,7.7773]
[1766711699499,0.001,2913.8,2913.0,7.7773]
[1766711700293,0.18476716,2914.0,2913.2,7.7773]
[1766711700620,0.18476716,2914.0,2913.4,7.7773]
[1766711700823,0.18476716,2914.0,2913.4,8.55503]
[1766711701127,4.052e-05,2914.0,2913.5,7.7773]
[1766711701291,0.00803066,2914.4,2913.5,7.7773]
[1766711701488,3.066e-05,2914.4,2913.6,0.0343218]
[1766711701692,3.066e-05,2914.4,2913.7,8.55846218]
[1766711701916,3.066e-05,2914.4,2913.7,7.7773]
[1766711702118,7.92391172,2914.9,2913.5,7.7773]
[1766711702315,7.92391172,2914.9,2913.7,11.89725716]
[1766711702518,7.87391172,2914.9,2914.3,7.7773]
[1766711702714,0.79249117,2914.8,2914.3,7.7773]
[1766711703325,0.12321172,2914.9,2914.3,7.7773]
[1766711703525,7.7507,2914.8,2913.7,7.7773]
[1766711703891,7.7507,2914.6,2913.7,7.7773]
[1766711704096,7.7507,2914.6,2913.8,0.03431944]
[1766711704426,8.47577,2914.6,2913.6,11.20946832]
[1766711704615,8.47577,2914.6,2913.8,3.43193292]
[1766711704814,8.47577,2914.6,2913.7,3.43202162]
[1766711705320,8.47577,2914.6,2913.8,3.43193481]
[1766711705522,8.47577,2914.6,2913.7,7.7773]
[1766711705727,7.7507,2914.4,2913.3,7.7773]
[1766711706115,7.7507,2914.4,2913.5,3.43221409]
[1766711706327,7.7507,2914.4,2913.5,3.43229792]
[1766711706623,7.7507,2914.4,2913.6,7.8116218]
[1766711706814,7.7507,2914.4,2913.6,7.7773]
[1766711707306,7.7007,2914.4,2913.6,7.7773]
[1766711708336,7.7007,2914.4,2913.7,3.43206232]
[1766711708540,7.7507,2914.8,2913.8,7.7773]
[1766711708698,0.001,2914.4,2913.8,7.7773]
[1766711709376,0.12321172,2914.9,2914.0,7.7773]
[1766711709547,0.07321172,2914.9,2914.1,7.81161591]
[1766711709838,7.82391172,2914.9,2914.1,7.7773]
[1766711710399,7.82391172,2914.9,2913.9,14.64095352]
[1766711710714,7.7507,2914.7,2914.0,7.7773]
[1766711711502,7.7507,2914.7,2913.8,3.43188998]
[1766711712413,7.7507,2914.7,2913.7,3.43200978]
[1766711712625,7.7507,2914.5,2913.3,7.7773]
[1766711712943,4.11995716,2914.6,2912.4,3.44730093]
[1766711712944,7.7507,2913.9,2912.9,7.7773]
[1766711713231,7.7507,2913.9,2913.1,7.7773]
[1766711713457,7.7507,2914.7,2913.6,11.20939954]
[1766711713635,4.90244833,2914.8,2913.8,7.7773]
[1766711713636,0.78249117,2914.8,2913.8,7.7773]
[1766711713931,0.78249117,2914.8,2913.7,14.45046474]
[1766711713932,7.70841172,2914.9,2914.1,7.8017]
[1766711714438,7.70841172,2914.9,2914.2,11.23317347]
[1766711714746,7.70841172,2914.9,2914.3,7.8017]
[1766711714909,0.07321172,2914.9,2914.4,7.8017]
[1766711716332,0.001,2915.1,2914.2,6.86294694]
[1766711716333,0.001,2915.1,2914.3,7.8017]
[1766711716644,7.6362,2915.1,2914.4,3.43123799]
[1766711716810,7.6362,2915.1,2914.3,7.8017]
[1766711717005,7.6362,2915.1,2914.4,0.03431237]
[1766711717006,7.6352,2914.9,2914.4,0.03431237]
[1766711717423,0.001,2915.1,2914.4,7.8017]
[1766711717829,7.6362,2915.1,2914.4,7.8017]
[1766711718939,7.6362,2915.1,2914.2,3.43140128]
[1766711719140,7.6362,2915.1,2914.3,3.43135058]
[1766711719643,7.6362,2915.1,2914.4,3.46553281]
[1766711719829,7.6362,2915.1,2914.1,3.43149131]
[1766711720143,7.6362,2915.1,2914.4,3.43120235]
[1766711720344,7.6362,2915.1,2914.3,3.4312944]
[1766711720515,8.24206459,2915.1,2914.3,3.4312944]
[1766711720921,7.6352,2915.0,2913.8,3.43187469]
[1766711721634,7.6352,2915.0,2913.9,3.43182424]
[1766711722143,7.6352,2915.0,2914.2,3.43145246]
[1766711722521,7.6352,2915.0,2914.0,11.23340314]
[1766711722522,7.6352,2915.0,2914.0,7.8017]
[1766711722723,7.6352,2914.8,2914.1,3.43152664]
[1766711723126,7.6352,2914.8,2914.1,14.69913377]
[1766711723339,7.6352,2914.8,2914.1,14.66481786]
[1766711723627,7.6352,2914.8,2914.2,7.8017]
[1766711725142,7.6352,2914.8,2913.8,7.8017]
[1766711725358,7.6352,2914.8,2913.7,6.8640522]
[1766711725359,7.6352,2914.8,2913.9,7.83601826]
[1766711725531,7.6352,2914.8,2913.9,7.8017]
[1766711725732,7.6352,2914.8,2914.0,0.03431708]
[1766711725937,7.6352,2914.8,2914.1,7.8017]
[1766711727162,7.6352,2914.8,2913.7,14.6657522]
[1766711727382,7.6352,2914.8,2913.9,3.43182676]
[1766711730372,7.6362,2914.8,2913.8,3.43191916]
[1766711731057,7.6362,2914.8,2913.7,11.23371458]
[1766711731273,7.6352,2914.7,2913.7,11.23371458]
[1766711733668,7.6352,2914.7,2913.7,14.6657769]
[1766711733868,7.6352,2914.5,2913.7,6.8640769]
[1766711734070,7.6352,2914.5,2913.6,0.002]
[1766711735067,7.6352,2914.5,2913.6,3.43417347]
[1766711735282,0.76362,2914.6,2913.7,7.83602062]
[1766711735574,7.6352,2914.7,2913.7,7.8017]
[1766711736338,7.6352,2914.7,2913.8,11.26792376]
[1766711736642,7.6352,2914.7,2913.9,7.8017]
[1766711736843,7.6352,2914.7,2914.0,7.83601708]
[1766711737047,7.6352,2914.7,2914.1,0.03431591]
[1766711738471,7.6352,2914.7,2914.1,3.46589616]
[1766711739274,0.001,2914.8,2914.2,7.8017]
[1766711742667,7.1404,2914.8,2914.2,7.8017]
[1766711744769,7.3496,2914.7,2913.7,7.403]
[1766711745345,7.3496,2914.7,2914.1,0.002]
[1766711745546,8.42773717,2914.7,2914.1,0.002]
[1766711745767,8.42773717,2914.7,2913.6,3.43412808]
[1766711745768,8.42773717,2914.7,2913.6,0.002]
[1766711746482,7.3496,2914.5,2913.6,0.002]
[1766711748288,7.3496,2914.5,2913.7,7.403]
[1766711750166,7.3496,2914.6,2913.7,7.403]
[1766711750480,7.3496,2914.4,2913.6,0.002]
[1766711751263,7.3496,2914.3,2913.6,0.002]
[1766711753273,7.3496,2914.3,2913.6,7.405]
[1766711756263,7.3496,2914.3,2913.6,0.002]
[1766711757857,3.43102859,2914.6,2913.6,0.002]
[1766711757858,7.3496,2914.6,2913.6,0.002]
[1766711758057,7.3496,2914.4,2913.6,7.405]
[1766711758289,7.3496,2914.4,2913.8,7.403]
[1766711759372,7.3496,2914.4,2913.6,0.002]
[1766711759572,7.3496,2914.4,2913.6,7.405]
[1766711759767,7.3496,2914.4,2913.7,1.08392421]
[1766711761087,7.3496,2914.4,2913.7,7.403]
[1766711762084,7.3496,2914.3,2913.6,0.002]
[1766711762885,7.3496,2914.2,2913.6,0.002]
[1766711763188,7.3496,2914.2,2913.5,0.002]
[1766711763690,7.3496,2914.2,2913.6,0.002]
[1766711763992,8.42768941,2914.2,2913.6,0.002]
[1766711764686,4.50960277,2914.2,2913.6,0.002]
[1766711764871,7.3496,2914.1,2913.5,0.002]
[1766711769699,7.3496,2914.0,2913.0,0.002]
[1766711769988,8.53551672,2914.0,2913.0,0.7425]
[1766711770179,8.53551672,2914.0,2913.1,7.43732769]
[1766711770383,7.3496,2914.0,2913.3,7.403]
[1766711771589,3.43142236,2914.3,2913.3,7.403]
[1766711771590,7.3496,2914.3,2913.5,7.403]
[1766711771790,7.3496,2914.3,2913.5,7.405]
[1766711772193,0.001,2914.1,2913.5,7.405]
[1766711772396,0.001,2914.1,2913.6,1.03769249]
[1766711772893,7.3506,2914.1,2913.6,1.03769249]
[1766711773189,7.3506,2914.1,2913.5,7.405]
[1766711773492,7.3506,2914.1,2913.5,0.002]
[1766711776299,0.001,2914.1,2913.6,7.5029]
[1766711776497,0.001,2914.1,2913.5,11.62096001]
[1766711776690,0.001,2914.1,2913.5,7.5049]
[1766711778101,0.001,2914.1,2913.6,7.5029]
[1766711778502,0.001,2914.1,2913.7,0.03432062]
[1766711778674,7.3293,2914.3,2913.8,7.5029]
[1766711779003,7.1583,2914.3,2913.5,0.002]
[1766711779203,7.1583,2914.3,2913.6,8.25794217]
[1766711780007,7.1583,2914.3,2913.5,0.002]
[1766711780916,7.1583,2914.3,2913.5,3.43429238]
[1766711781211,0.001,2914.1,2913.6,7.5372218]
[1766711781410,0.001,2914.1,2913.7,7.53722062]
[1766711781611,0.001,2914.1,2913.8,0.03431944]
[1766711781793,0.001,2914.1,2913.8,7.53721944]
[1766711781992,6.9873,2914.3,2913.8,10.93477568]
[1766711783118,6.9873,2914.3,2913.5,0.002]
[1766711783292,7.3293,2914.1,2913.5,0.002]
[1766711783492,8.81697506,2914.1,2913.5,0.002]
[1766711784216,7.3293,2914.1,2913.5,7.5049]
[1766711784921,7.1583,2914.6,2913.6,11.65328181]
[1766711785211,7.1583,2914.6,2913.7,7.5029]
[1766711786001,7.3293,2914.5,2913.5,0.002]
[1766711786200,7.3293,2914.3,2913.5,0.002]
[1766711787607,4.11606001,2914.2,2913.1,7.5029]
[1766711787800,7.3293,2914.1,2913.1,7.5029]
[1766711788001,7.3293,2913.7,2913.0,0.002]
[1766711788915,7.3293,2913.7,2913.5,0.002]
[1766711789220,8.06223,2913.6,2913.5,0.002]
[1766711789520,8.06223,2913.6,2913.0,0.002]
[1766711790621,7.3293,2913.5,2913.0,0.002]
[1766711790796,4.11606001,2913.4,2913.0,0.002]
[1766711790997,7.3293,2913.3,2912.5,10.93833759]
[1766711791321,7.3293,2913.1,2912.6,1.09383376]
[1766711791500,7.3293,2913.1,2912.5,0.002]
[1766711793622,4.11606001,2913.0,2912.5,0.002]
[1766711793823,7.3293,2912.9,2912.5,0.002]
[1766711794925,7.3293,2912.9,2912.3,0.002]
[1766711795235,8.473836,2912.9,2912.3,0.002]
[1766711796334,8.473836,2912.9,2912.5,0.002]
[1766711801231,7.3293,2912.9,2912.5,0.002]
[1766711802509,7.3293,2912.9,2912.3,0.002]
[1766711809211,7.3293,2912.9,2912.3,7.3858]
[1766711809434,4.11606001,2913.3,2912.4,7.3838]
[1766711809619,7.1914,2913.2,2912.4,7.3838]
[1766711809935,7.1914,2913.2,2912.4,8.12238]
[1766711810637,7.1914,2913.2,2912.4,0.73858]
[1766711810834,7.1914,2913.0,2912.3,0.002]
[1766711811037,7.1914,2912.8,2912.3,0.002]
[1766711811340,7.1914,2912.8,2911.9,10.81796982]
[1766711812239,7.1914,2912.8,2912.3,0.002]
[1766711812565,8.66544021,2912.8,2912.3,0.002]
[1766711812748,7.1914,2912.6,2911.8,0.002]
[1766711813053,7.1914,2912.6,2911.8,3.43628928]
[1766711813262,7.1914,2912.6,2911.9,3.43417988]
[1766711813410,7.1914,2912.6,2912.0,7.3838]
[1766711813765,7.1914,2912.6,2912.0,8.81266102]
[1766711813914,7.1914,2913.1,2912.2,7.3838]
[1766711814237,7.1914,2913.1,2912.3,7.41813712]
[1766711814467,7.1914,2913.1,2912.3,7.3838]
[1766711816124,7.1914,2913.1,2912.4,0.03433594]
[1766711816445,8.25390647,2913.1,2912.4,0.03433594]
[1766711817644,8.25390647,2913.1,2912.3,7.3838]
[1766711818012,7.1914,2913.0,2912.3,7.3838]
[1766711818219,7.1914,2912.9,2912.0,8.81266102]
[1766711818421,7.1914,2912.9,2912.1,0.34933147]
[1766711820453,7.1924,2912.9,2912.1,0.34933147]
[1766711821157,7.1924,2912.9,2912.2,7.4181383]
[1766711821356,7.1924,2912.9,2912.2,7.3838]
[1766711821554,0.001,2913.2,2912.5,10.81722256]
[1766711821765,0.001,2913.2,2912.6,7.41813358]
[1766711821962,0.001,2913.2,2912.6,7.3838]
[1766711823360,0.001,2913.2,2912.8,7.3838]
[1766711823564,0.001,2913.2,2912.9,7.41813004]
[1766711823772,0.001,2913.2,2912.9,7.3838]
[1766711823933,0.001,2913.2,2912.9,10.81679566]
[1766711824530,0.001,2913.2,2912.9,7.3838]
[1766711824774,0.001,2913.2,2912.9,8.46548846]
[1766711825575,0.001,2913.2,2913.0,0.03432887]
[1766711825791,7.1914,2913.6,2913.1,7.3838]
[1766711825972,7.1914,2914.0,2913.2,7.41812651]
[1766711826153,0.001,2914.1,2913.4,7.3838]
[1766711826510,0.001,2914.1,2913.3,0.69650403]
[1766711826511,0.001,2914.1,2913.6,7.3838]
[1766711826789,0.001,2914.3,2913.8,7.3838]
[1766711827088,0.001,2914.3,2913.9,0.03431826]
[1766711828892,0.001,2914.3,2913.9,7.41811826]
[1766711829080,0.001,2914.3,2913.9,7.3838]
[1766711830072,7.1914,2914.5,2913.9,11.89719693]
[1766711830262,7.1904,2914.5,2914.0,0.03431708]
[1766711830461,7.1904,2914.5,2913.9,8.46537344]
[1766711831583,7.1904,2914.5,2912.2,0.70185303]
[1766711831584,7.1904,2914.5,2913.1,1.04400371]
[1766711831785,7.1914,2914.4,2913.2,10.8163445]
[1766711832100,7.1914,2914.2,2913.1,1.03022154]
[1766711832387,7.1914,2914.2,2913.0,3.43277036]
[1766711832388,7.1914,2914.0,2912.9,3.4329268]
[1766711832572,7.1914,2914.0,2912.7,3.43320798]
[1766711832573,7.1914,2914.0,2913.0,7.41812887]
[1766711832748,7.1914,2914.0,2913.1,3.43265861]
[1766711832955,7.1914,2914.0,2913.2,7.41812651]
[1766711833252,7.1914,2914.0,2913.2,7.3838]
[1766711833580,7.1914,2913.8,2913.2,7.3838]
[1766711833782,7.1914,2913.8,2912.9,10.35296813]
[1766711834282,7.1914,2913.8,2912.7,3.44698652]
[1766711834283,7.1914,2913.8,2913.0,10.3872123]
[1766711834487,7.1914,2913.8,2913.0,10.35288343]
[1766711834684,7.1914,2913.8,2913.1,0.03432769]
[1766711834886,6.8643,2914.3,2913.5,6.92]
[1766711835061,6.8643,2914.3,2913.6,6.9543218]
[1766711835266,6.8643,2914.3,2913.7,6.95432062]
[1766711835466,6.8643,2914.3,2913.8,0.03431944]
[1766711835668,6.6943,2914.8,2913.8,7.64975138]
[1766711835865,6.6943,2914.8,2913.9,0.03431826]
[1766711836858,6.8643,2914.7,2913.8,7.61543194]
[1766711837291,6.8643,2914.7,2913.8,0.69543194]
[1766711837589,6.8643,2914.7,2913.6,3.43210291]
[1766711837761,6.8643,2914.7,2913.7,6.92]
[1766711837960,6.8643,2914.7,2913.8,10.35192979]
[1766711838178,6.8643,2914.7,2913.8,11.73034074]
[1766711839270,6.8643,2914.7,2913.8,8.29841095]
[1766711843490,6.8643,2914.7,2913.9,6.92]
[1766711843672,6.8653,2914.7,2914.0,0.03431708]
[1766711844374,6.8653,2914.7,2914.0,0.43409862]
[1766711844694,6.8653,2914.7,2914.0,7.35409862]
[1766711844896,6.8653,2914.7,2914.0,7.31978154]
[1766711845092,6.8653,2914.7,2914.1,0.03431591]
[1766711845265,6.8653,2914.7,2914.1,6.95431591]
[1766711845595,6.8653,2914.7,2914.1,7.99857896]
[1766711845796,6.8653,2914.7,2914.1,1.07857896]
[1766711845962,6.8653,2914.7,2913.7,10.35202042]
[1766711846163,6.8653,2914.7,2913.9,10.35182288]
[1766711846398,6.8653,2914.7,2914.0,3.43170878]
[1766711846711,6.8653,2914.7,2914.1,6.92]
[1766711847294,6.8653,2914.7,2913.9,6.92]
[1766711847465,6.8653,2914.7,2913.9,11.73019971]
[1766711847866,6.8653,2914.7,2914.0,6.92]
[1766711848987,6.8653,2914.7,2913.9,1.3783909]
[1766711849290,6.8643,2914.6,2913.7,6.92]
[1766711850807,6.8643,2914.6,2913.7,10.35204458]
[1766711850977,6.8643,2914.6,2913.8,0.03431944]
[1766711851290,6.8643,2914.6,2913.7,10.35204458]
[1766711851486,6.8643,2914.6,2913.7,11.38724904]
[1766711851795,6.8643,2914.6,2913.8,0.03431944]
[1766711852100,6.8643,2914.6,2913.7,11.38724904]
[1766711852496,6.8643,2914.6,2913.7,4.46724904]
[1766711852670,6.8643,2914.6,2913.7,1.03520446]
[1766711852870,7.66509982,2914.6,2913.7,1.03520446]
[1766711853098,7.66509982,2914.6,2913.6,3.4321435]
[1766711853286,7.66509982,2914.6,2913.7,3.46634788]
[1766711853489,7.66509982,2914.6,2913.7,10.38634788]
[1766711853694,7.66509982,2914.6,2913.7,10.35202726]
[1766711855003,7.66509982,2914.6,2913.8,0.03431944]
[1766711856709,7.66509982,2914.6,2913.8,3.46626154]
[1766711857012,6.8653,2914.7,2913.9,7.95862615]
[1766711857412,6.8643,2914.6,2913.6,10.35211987]
[1766711857619,6.8643,2914.6,2913.5,3.43223507]
[1766711857914,6.8643,2914.6,2913.5,3.43227685]
[1766711858100,6.8643,2914.6,2913.4,6.92]
[1766711858408,6.8643,2914.6,2913.8,6.92]
[1766711858615,6.8643,2914.6,2913.9,6.95431826]
[1766711858818,6.8643,2914.6,2913.9,6.92]
[1766711860117,6.8643,2914.6,2914.0,0.03431708]